[Event "WSTCC-50 2024"]
[Site "Krakow"]
[Date "2024.07.03"]
[Round "2.4"]
[White "Yermolinsky, Alex"]
[Black "Findlay, Ian T."]
[Result "1/2-1/2"]
[ECO "E54"]
[WhiteElo "2421"]
[BlackElo "2118"]
[Annotator "TA"]
[PlyCount "27"]
[EventDate "2024.07.01"]
[EventType "team-tourn"]
[EventCountry "POL"]
[SourceTitle "playchess.com"]
[Source "ChessBase"]
[SourceQuality "1"]
[TimeControl "40/5400+30:1800+30"]

{[%evp 22,27,0,0,5,-11,15,0]} 1. Nf3 {[%emt 0:00:08]} Nf6 {[%emt 0:00:27]} 2. c4 {[%emt 0:00:04]} e6 {[%emt 0:00:15]} 3. Nc3 {[%emt 0:00:07]} d5 {[%emt 0:01:48]} 4. d4 {[%emt 0:00:05]} Bb4 {[%emt 0:00:16]} 5. e3 {[%emt 0:01:19]} c5 {[%emt 0:04:28]} 6. Bd3 {[%emt 0:02:43]} O-O {[%emt 0:03:18]} 7. O-O {[%emt 0:00:11]} dxc4 {[%emt 0:01:06]} 8. Bxc4 {[%emt 0:00:04]} cxd4 {[%emt 0:00:31]} 9. exd4 {[%emt 0:00:05]} b6 {[%emt 0:01:31]} 10. Bg5 {[%emt 0:01:18]} Bb7 {[%emt 0:03:29]} 11. Re1 {[%emt 0:00:08]} Nbd7 {[%emt 0:02:14]} 12. Bd3 {[%emt 0:00:29] The position is equal.} Rc8 {[%emt 0:08:18]} 13. Rc1 {[%emt 0:00:16]} a6 {[%emt 0:08:10]} 14. a4 {[%emt 0:11:10] A rather calm draw.   Weighted Error Value: White=0.08 (flawless) /Black=0.16 (very precise) .  Inaccurate:     	---       	Black=1} 1/2-1/2

[Event "WSTCC-50 2024"]
[Site "Krakow"]
[Date "2024.07.03"]
[Round "2.4"]
[White "Jhunjhnuwala, Krishan"]
[Black "Heatlie, Douglas S"]
[Result "1/2-1/2"]
[ECO "C44"]
[WhiteElo "2227"]
[BlackElo "1834"]
[Annotator "RC"]
[PlyCount "78"]
[EventDate "2024.07.01"]
[EventType "team-tourn"]
[EventCountry "POL"]
[SourceTitle "playchess.com"]
[Source "ChessBase"]
[SourceQuality "1"]
[TimeControl "40/5400+30:1800+30"]

1. e4 {[%emt 0:00:11]} e5 {[%emt 0:00:09]} 2. Nf3 {[%emt 0:00:06]} Nc6 {[%emt 0:00:11]} 3. d4 {[%emt 0:00:07]} exd4 {[%emt 0:00:34]} 4. Nxd4 {[%emt 0:00:10]} Nge7 {[%emt 0:06:30]} 5. Nc3 {[%emt 0:03:18]} Nxd4 {[%emt 0:05:05]} 6. Qxd4 {[%emt 0:01:16]} b6 {[%emt 0:04:55]} 7. Bc4 {[%emt 0:04:24]} Bb7 {[%emt 0:04:43]} 8. O-O {[%emt 0:06:00]} Ng6 {[%emt 0:03:44]} 9. Rd1 {[%emt 0:18:50]} c6 {[%emt 0:00:41]} 10. a4 {[%emt 0:02:51]} f6 {[%emt 0:02:59]} 11. Qe3 {[%emt 0:12:00]} Qc7 {[%emt 0:01:31]} 12. Qe2 {[%emt 0:12:12]} a5 {[%emt 0:02:00]} 13. Be3 {[%emt 0:00:24]} Ne5 {[%emt 0:18:52]} 14. Bf4 {[%emt 0:09:05]} O-O-O {[%emt 0:01:02]} 15. Ba6 {[%emt 0:01:37]} Bc5 {[%emt 0:09:51]} 16. Be3 {[%emt 0:04:49]} Bxe3 {[%emt 0:00:33]} 17. Bxb7+ {[%emt 0:00:08]} Kxb7 {[%emt 0:00:17]} 18. Qxe3 {[%emt 0:00:48]} Nc4 {[%emt 0:01:37]} 19. Qd4 {[%emt 0:00:28]} Ne5 {[%emt 0:04:38]} 20. b4 {[%emt 0:01:08]} axb4 {[%emt 0:05:31]} 21. Qxb4 {[%emt 0:00:06]} Rhe8 {[%emt 0:05:31]} 22. a5 {[%emt 0:05:22]} b5 {[%emt 0:01:58]} 23. a6+ {[%emt 0:06:15]} Ka8 {[%emt 0:01:04]} 24. a7 {[%emt 0:02:04]} Nc4 {[%emt 0:01:13]} 25. Rdb1 {[%emt 0:01:55]} Re5 {[%emt 0:06:43]} 26. f4 {[%emt 0:04:13]} Rh5 {[%emt 0:05:51]} 27. Nd5 cxd5 {[%emt 0:01:49]} 28. Qxb5 {[%emt 0:02:11]} Qb6+ {[%emt 0:02:25]} 29. Qxb6 {[%emt 0:00:04]} Nxb6 {[%emt 0:00:21]} 30. Rxb6 {[%emt 0:00:03]} dxe4 {[%emt 0:00:19]} 31. Rd6 {[%emt 0:00:15]} Rc5 {[%emt 0:01:06]} 32. Ra2 {[%emt 0:00:09]} Rc7 {[%emt 0:00:35]} 33. g4 {[%emt 0:01:11]} Rxa7 {[%emt 0:00:21]} 34. Rxa7+ {[%emt 0:01:36]} Kxa7 {[%emt 0:00:05]} 35. Kf2 {[%emt 0:00:08]} Kb7 {[%emt 0:00:25]} 36. Ke3 {[%emt 0:00:13]} Kc7 {[%emt 0:00:19]} 37. Rd4 {[%emt 0:00:44]} Re8 {[%emt 0:01:25]} 38. Rc4+ {[%emt 0:01:23]} Kd6 {[%emt 0:00:15]} 39. Rd4+ {[%emt 0:00:10]} Kc6 1/2-1/2

[Event "WSTCC-50 2024"]
[Site "Krakow"]
[Date "2024.07.03"]
[Round "2.4"]
[White "Koganov, Mikhail"]
[Black "Dettmann, Holger"]
[Result "1/2-1/2"]
[ECO "B06"]
[WhiteElo "2177"]
[BlackElo "1965"]
[Annotator "RC"]
[PlyCount "106"]
[EventDate "2024.07.01"]
[EventType "team-tourn"]
[EventCountry "POL"]
[SourceTitle "playchess.com"]
[Source "ChessBase"]
[SourceQuality "1"]
[TimeControl "40/5400+30:1800+30"]

1. e4 {[%emt 0:00:17]} g6 {[%emt 0:00:33]} 2. d4 {[%emt 0:00:10]} Bg7 {[%emt 0:00:05]} 3. Nc3 {[%emt 0:00:08]} c6 {[%emt 0:01:10]} 4. f4 {[%emt 0:00:26]} d6 {[%emt 0:08:48]} 5. Nf3 {[%emt 0:04:11]} Nf6 {[%emt 0:05:36]} 6. Bd3 {[%emt 0:00:41]} O-O {[%emt 0:03:30]} 7. O-O {[%emt 0:01:01]} b5 {[%emt 0:06:59]} 8. Qe1 {[%emt 0:04:11]} a6 {[%emt 0:16:40]} 9. e5 {[%emt 0:16:57]} Ng4 {[%emt 0:05:08]} 10. Ne4 {[%emt 0:05:31]} c5 {[%emt 0:21:01]} 11. h3 {[%emt 0:05:43]} c4 {[%emt 0:00:17]} 12. Be2 {[%emt 0:07:37]} Nh6 {[%emt 0:00:13]} 13. c3 {[%emt 0:02:55]} Qb6 {[%emt 0:06:37]} 14. Kh2 {[%emt 0:03:10]} f6 {[%emt 0:01:38]} 15. Bd1 {[%emt 0:03:38]} d5 {[%emt 0:06:43]} 16. Nc5 {[%emt 0:01:26]} Nf7 {[%emt 0:04:57]} 17. a4 {[%emt 0:02:47]} Ra7 {[%emt 0:01:05]} 18. b4 {[%emt 0:01:23]} cxb3 {[%emt 0:03:44]} 19. Bxb3 {[%emt 0:01:14]} bxa4 {[%emt 0:00:03]} 20. Bxd5 {[%emt 0:00:45]} e6 {[%emt 0:00:41]} 21. exf6 {[%emt 0:03:52]} exd5 {[%emt 0:00:18]} 22. fxg7 {[%emt 0:00:13]} Kxg7 {[%emt 0:00:30]} 23. Rxa4 {[%emt 0:00:41]} Qd6 {[%emt 0:01:27]} 24. Rf2 {[%emt 0:02:34]} Re7 {[%emt 0:00:16]} 25. Re2 {[%emt 0:01:06]} Rfe8 {[%emt 0:00:40]} 26. Ne5 {[%emt 0:00:58]} Nc6 {[%emt 0:00:07]} 27. Ncd3 {[%emt 0:00:25]} Bf5 {[%emt 0:01:18]} 28. Ba3 {[%emt 0:00:56]} Ncxe5 {[%emt 0:01:06]} 29. fxe5 {[%emt 0:05:34]} Qc6 {[%emt 0:00:02]} 30. Bxe7 {[%emt 0:00:57]} Bxd3 {[%emt 0:00:14]} 31. Bf6+ {[%emt 0:02:14]} Kg8 {[%emt 0:00:02]} 32. Raa2 {[%emt 0:02:16]} Bxe2 {[%emt 0:00:55]} 33. Rxe2 {[%emt 0:01:06]} Nh6 {[%emt 0:00:22]} 34. Qa1 {[%emt 0:02:40]} Nf5 {[%emt 0:00:44]} 35. Ra2 {[%emt 0:01:48]} Ra8 {[%emt 0:01:19]} 36. Ra5 {[%emt 0:01:14]} Ne3 {[%emt 0:00:14]} 37. Qc1 {[%emt 0:00:51]} Nf5 {[%emt 0:01:03]} 38. Rc5 {[%emt 0:00:41]} Qe6 {[%emt 0:00:12]} 39. Rc7 {[%emt 0:00:29]} Rc8 {[%emt 0:00:16]} 40. Rxc8+ {[%emt 0:09:06]} Qxc8 {[%emt 0:00:03]} 41. Qd2 {[%emt 0:08:45]} Ng7 {[%emt 0:09:33]} 42. Qb2 {[%emt 0:02:19]} Ne8 {[%emt 0:00:04]} 43. Qb6 {[%emt 0:02:53]} Nxf6 {[%emt 0:09:37]} 44. Qxf6 {[%emt 0:02:14]} Qf8 {[%emt 0:00:05]} 45. Qxa6 {[%emt 0:02:53]} Qf4+ {[%emt 0:00:11]} 46. Kg1 {[%emt 0:00:34]} Qe3+ {[%emt 0:00:41]} 47. Kf1 {[%emt 0:00:40]} Qf4+ {[%emt 0:02:45]} 48. Ke1 {[%emt 0:00:54]} Qc1+ {[%emt 0:00:17]} 49. Ke2 {[%emt 0:00:34]} Qc2+ {[%emt 0:00:06]} 50. Ke3 {[%emt 0:00:29]} Qc1+ {[%emt 0:01:14]} 51. Kf2 {[%emt 0:02:12]} Qf4+ {[%emt 0:00:23]} 52. Kg1 {[%emt 0:01:32]} Qe3+ {[%emt 0:00:16]} 53. Kh1 {[%emt 0:00:31]} Qc1+ {[%emt 0:00:09]} 1/2-1/2

[Event "WSTCC-50 2024"]
[Site "Krakow"]
[Date "2024.07.03"]
[Round "2.5"]
[White "Adams, Michael"]
[Black "Belakovskaia, Anjelina"]
[Result "1-0"]
[ECO "C84"]
[WhiteElo "2670"]
[BlackElo "2171"]
[Annotator "TA"]
[PlyCount "73"]
[EventDate "2024.07.01"]
[EventType "team-tourn"]
[EventCountry "POL"]
[SourceTitle "playchess.com"]
[Source "ChessBase"]
[SourceQuality "1"]
[TimeControl "40/5400+30:1800+30"]

{[%evp 14,73,14,11,37,17,52,8,33,32,33,41,84,80,70,50,67,56,87,85,92,96,109,110,198,197,204,98,206,213,230,229,212,83,93,84,275,271,268,277,229,278,264,203,450,450,480,480,6121,6114,6187,6183,6202,6087,29978,29979,29980,29981,29982,29983,29983,29984]} 1. e4 {[%emt 0:00:05]} e5 {[%emt 0:00:08]} 2. Nf3 {[%emt 0:00:15]} Nc6 {[%emt 0:00:09]} 3. Bb5 {[%emt 0:00:52]} a6 {[%emt 0:00:17]} 4. Ba4 {[%emt 0:00:06]} Nf6 {[%emt 0:00:15]} 5. O-O {[%emt 0:00:41]} Be7 {[%emt 0:00:23]} 6. d3 {[%emt 0:00:19]} b5 {[%emt 0:01:39]} 7. Bb3 {[%emt 0:00:08]} d6 {[%emt 0:01:04]} 8. a4 {[%emt 0:01:35]} Rb8 {[%emt 0:04:05]} 9. c3 {[%emt 0:02:32]} O-O {[%emt 0:00:25]} 10. Nbd2 {[%emt 0:00:45]} d5 {[%emt 0:10:54] The position is equal.} 11. axb5 {[%emt 0:10:34]} axb5 {[%emt 0:00:49]} 12. Re1 {[%emt 0:04:32]} Bb7 {[%emt 0:01:59]} 13. exd5 {[%emt 0:01:49]} Nxd5 {[%emt 0:00:03]} 14. Ne4 {[%emt 0:01:49]} Nf6 {[%emt 0:08:41]} 15. Qe2 {[%emt 0:05:47] White is more active.} Ra8 {[%emt 0:06:14]} 16. Rxa8 {[%emt 0:07:32]} Qxa8 {[%emt 0:02:26]} 17. Bg5 {[%emt 0:02:50]} Nxe4 {[%emt 0:02:44]} 18. dxe4 {[%emt 0:00:58]} Bxg5 {[%emt 0:09:26]} (18... Bd6 $16) 19. Nxg5 $18 {[%emt 0:00:02][%cal Oe2h5] Qh5! is the strong threat.} Nd8 {[%emt 0:00:23]} 20. h3 {[%emt 0:08:29]} (20. Qxb5 $18 {and White stays clearly on top.} h6 21. Nf3) 20... c5 {[%emt 0:12:10]} (20... Qa6 $16 {was necessary.}) 21. Qxb5 {[%emt 0:09:37]} h6 {[%emt 0:00:10]} 22. Nf3 {[%emt 0:01:14]} Bxe4 {[%emt 0:00:32]} 23. Re3 {[%emt 0:09:00]} (23. Qxc5 $6 Bxf3 24. gxf3 Qxf3 $16) (23. Nxe5 $18 Bxg2 24. Ng6 (24. Qxc5 Bxh3 25. Qd5 Qb8 $11)) 23... Ne6 {[%emt 0:01:49]} 24. Bxe6 {[%emt 0:06:50]} (24. Nxe5 $6 Bxg2 25. Bxe6 fxe6 $11) 24... Bxf3 $2 {[%emt 0:03:56] Black cannot hold the game after this.} (24... fxe6 $16 25. Ne1 (25. Qxc5 Bxf3 26. gxf3 Rf6 $16) (25. Nxe5 Bxg2 26. Qxc5 Bd5 $11) 25... Bd5) 25. Rxf3 {[%emt 0:00:29]} fxe6 {[%emt 0:00:02]} 26. Rxf8+ {[%emt 0:02:47]} (26. Qxc5 Qa1+ 27. Kh2 Rxf3 28. gxf3 Qxb2 $11) 26... Qxf8 $16 {[%emt 0:00:23][%mdl 4096] Endgame. KQ-KQ} 27. b4 $1 {[%emt 0:05:57]} cxb4 {[%emt 0:01:26]} 28. cxb4 {[%emt 0:00:07][%cal Ob5c5] aiming for Qc5!} Qd6 {[%emt 0:06:02]} (28... h5 29. Qb6 (29. Qxe5 Qxb4 30. Qxe6+ Kh7 $11) 29... Kh7) 29. Qc5 $1 $18 {[%emt 0:03:29]} Qd1+ {[%emt 0:08:36]} 30. Kh2 {[%emt 0:00:02][%cal Ob4b5] Strongly threatening b5!} Qd4 {[%emt 0:00:14]} (30... e4 $142 31. b5 Kf7) 31. Qxd4 {[%emt 0:06:46]} exd4 {[%emt 0:00:02] KP-KP} 32. Kg3 {[%emt 0:01:29] Black must now prevent b5.} Kf7 {[%emt 0:00:13] [#]} 33. f4 $1 {[%emt 0:00:22]} g5 {[%emt 0:03:40]} 34. fxg5 {[%emt 0:00:45] White mates.} hxg5 {[%emt 0:00:03]} 35. Kf3 {[%emt 0:00:09]} e5 {[%emt 0:01:33]} 36. Ke4 {[%emt 0:00:21]} Ke6 {[%emt 0:00:11] [#]} 37. g3 $1 {[%emt 0:00:25] Weighted Error Value: White=0.17 (very precise) /Black=0.71.  Loses game:     	---       	Black=1      Mistake:       	White=2     	Black=4      Inaccurate:     	White=1     	Black=3      OK:         	White=7     	Black=5      Best:        	White=3     	---        Strong:       	White=2     	---} 1-0

[Event "WSTCC-50 2024"]
[Site "Krakow"]
[Date "2024.07.03"]
[Round "2.5"]
[White "Mrva, Martin"]
[Black "Lalic, Susan K"]
[Result "1/2-1/2"]
[ECO "C02"]
[WhiteElo "2361"]
[BlackElo "2235"]
[Annotator "TA"]
[PlyCount "160"]
[EventDate "2024.07.01"]
[EventType "team-tourn"]
[EventCountry "POL"]
[SourceTitle "playchess.com"]
[Source "ChessBase"]
[SourceQuality "1"]
[TimeControl "40/5400+30:1800+30"]

{[%evp 58,160,41,53,93,89,89,89,167,158,200,190,239,252,268,205,160,170,217,183,172,130,115,118,93,43,33,53,29,39,37,28,28,14,14,22,22,14,14,14,14,14,14,8,8,0,0,0,0,0,0,0,0,0,0,0,0,0,0,0,0,0,0,0,0,0,0,0,0,0,0,0,0,0,0,0,0,0,592,0,0,0,0,0,0,0,0,0,0,0,0,0,0,0,0,0,0,0,0,0,0,0,0,0,0]} 1. e4 {[%emt 0:00:04]} e6 {[%emt 0:00:11]} 2. d4 {[%emt 0:00:35]} d5 {[%emt 0:00:11]} 3. e5 {[%emt 0:00:18]} c5 {[%emt 0:00:21]} 4. c3 {[%emt 0:00:08]} Nc6 {[%emt 0:01:28]} 5. Nf3 {[%emt 0:00:08]} Qb6 {[%emt 0:00:44]} 6. a3 {[%emt 0:01:20]} c4 {[%emt 0:01:46]} 7. Nbd2 {[%emt 0:00:21]} Na5 {[%emt 0:00:04]} 8. Rb1 {[%emt 0:00:52]} Bd7 {[%emt 0:00:59]} 9. h4 {[%emt 0:01:12]} O-O-O {[%emt 0:05:00]} 10. b4 {[%emt 0:01:23]} cxb3 {[%emt 0:02:13]} 11. Nxb3 {[%emt 0:01:39]} Ba4 {[%emt 0:13:47]} 12. Nfd2 {[%emt 0:00:25]} Ne7 {[%emt 0:14:45]} 13. Qc2 {[%emt 0:14:44]} Nec6 {[%emt 0:12:46]} 14. Qa2 {[%emt 0:02:07]} Nxb3 {[%emt 0:01:35]} 15. Nxb3 {[%emt 0:00:07]} Bxb3 {[%emt 0:00:30]} 16. Rxb3 {[%emt 0:26:10]} Qc7 {[%emt 0:00:06]} 17. Rh3 {[%emt 0:00:31]} f6 {[%emt 0:07:10]} 18. exf6 {[%emt 0:15:32]} gxf6 {[%emt 0:00:08]} 19. Rb1 {[%emt 0:06:28]} Bd6 {[%emt 0:06:40]} 20. Be2 {[%emt 0:02:56]} Rhg8 {[%emt 0:02:14]} 21. Kf1 {[%emt 0:07:05]} Qg7 {[%emt 0:03:14]} 22. Bf3 {[%emt 0:00:07]} Na5 {[%emt 0:02:38]} 23. a4 {[%emt 0:04:20]} Qc7 {[%emt 0:02:44]} 24. Qe2 {[%emt 0:03:45]} Qc4 {[%emt 0:04:03]} 25. Rb5 {[%emt 0:01:08]} b6 {[%emt 0:04:01]} 26. Qxc4+ {[%emt 0:01:02]} Nxc4 {[%emt 0:00:33]} 27. Be2 {[%emt 0:00:11]} Rd7 {[%emt 0:03:33]} 28. Rf3 {[%emt 0:00:47]} f5 {[%emt 0:02:11]} 29. Bxc4 {[%emt 0:02:20]} dxc4 {[%emt 0:00:04]} 30. Bg5 {[%emt 0:00:29]} Be7 {[%emt 0:03:49]} 31. Bxe7 {[%emt 0:01:20]} Rxe7 {[%emt 0:00:04]} 32. d5 {[%emt 0:00:16]} Rd8 {[%emt 0:00:33]} (32... Rg4 $16) 33. dxe6 $1 $18 {[%emt 0:00:34]} Rxe6 {[%emt 0:02:06]} 34. g3 $1 {[%emt 0:00:16]} Rd1+ {[%emt 0:00:30]} (34... Rd3 $142 35. Rbxf5 Kc7) 35. Kg2 $18 {[%emt 0:00:05]} Ra1 {[%emt 0:00:04]} 36. Rbxf5 {[%emt 0:00:23]} Kd7 {[%emt 0:00:41]} 37. Rd5+ {[%emt 0:04:01]} Kc6 {[%emt 0:00:39]} (37... Ke8 {is a better defense.} 38. Rf4 Rxa4) 38. Rh5 $18 {[%emt 0:00:07]} h6 {[%emt 0:01:28]} 39. g4 {[%emt 0:02:13]} Rxa4 {[%emt 0:00:47]} 40. Rf4 {[%emt 0:00:22]} b5 {[%emt 0:03:03]} 41. Rff5 {[%emt 0:31:55]} (41. g5 $16 hxg5 42. hxg5) 41... a6 $14 {[%emt 0:08:09]} 42. g5 {[%emt 0:00:00]} hxg5 {[%emt 0:00:44]} 43. hxg5 {[%emt 0:00:00]} Ra1 {[%emt 0:12:49]} 44. Rh6 {[%emt 0:00:00]} Rxh6 {[%emt 0:00:51]} 45. gxh6 {[%emt 0:00:00]} Re1 {[%emt 0:00:25]} 46. Rf6+ {[%emt 0:00:00]} Kb7 {[%emt 0:06:49]} 47. h7 {[%emt 0:00:00]} Re8 {[%emt 0:00:08]} 48. Rh6 {[%emt 0:00:00]} Rh8 {[%emt 0:00:03]} 49. Kf3 {[%emt 0:00:00]} a5 {[%emt 0:00:18]} 50. Ke4 {[%emt 0:00:00]} b4 {[%emt 0:01:27]} 51. Kd4 {[%emt 0:00:00]} b3 {[%emt 0:01:05]} 52. Kxc4 {[%emt 0:00:00]} b2 {[%emt 0:00:47]} 53. Rh1 {[%emt 0:00:00]} Kc6 {[%emt 0:00:11]} 54. Rb1 {[%emt 0:00:00]} Rxh7 {[%emt 0:00:12]} 55. Rxb2 {[%emt 0:00:00]} Rh4+ {[%emt 0:00:33]} 56. Kd3 {[%emt 0:00:00]} Rh3+ {[%emt 0:01:29]} 57. Kd4 {[%emt 0:00:00]} Rh4+ {[%emt 0:00:15]} 58. Ke5 {[%emt 0:00:00]} Rh3 {[%emt 0:01:47]} 59. Rc2 {[%emt 0:00:00]} Kc5 {[%emt 0:00:29]} 60. f4 {[%emt 0:00:00]} Re3+ {[%emt 0:00:29]} 61. Kf6 {[%emt 0:00:00]} a4 {[%emt 0:00:09]} 62. Ra2 {[%emt 0:00:15]} Kb5 {[%emt 0:00:15]} 63. Ra3 {[%emt 0:00:43]} Re1 {[%emt 0:00:16]} 64. f5 {[%emt 0:04:41]} Rb1 {[%emt 0:00:05]} 65. Ra2 {[%emt 0:03:34]} Rc1 {[%emt 0:00:16]} 66. Ra3 {[%emt 0:01:03]} Rb1 {[%emt 0:00:04]} 67. Ke6 {[%emt 0:00:17]} Rb3 $2 {[%emt 0:00:07][%mdl 8192] [#]} (67... Re1+ $11 {and Black has nothing to worry.} 68. Kf7 Rf1) 68. c4+ $2 {[%emt 0:00:32]} (68. f6 $1 $18 {[%mdl 512] White wants to mate with Rxb3+.} Rb1 (68... Rxa3 $2 {perishes.} 69. f7 $18) 69. c4+ Kb4 70. Rf3 Re1+ 71. Kd6 Rd1+ 72. Kc7) 68... Kb4 $11 {[%emt 0:00:15]} 69. Ra1 {[%emt 0:00:12]} Rc3 {[%emt 0:03:15]} 70. Kd5 {[%emt 0:00:39]} Rd3+ {[%emt 0:00:24]} 71. Ke5 {[%emt 0:01:15]} Rc3 {[%emt 0:00:10]} 72. Kd5 {[%emt 0:01:22]} Rd3+ {[%emt 0:00:04]} 73. Ke6 {[%emt 0:00:05]} Rc3 {[%emt 0:00:17]} 74. f6 {[%emt 0:01:11]} Rxc4 {[%emt 0:00:06]} 75. f7 {[%emt 0:00:17]} Rf4 {[%emt 0:00:33]} 76. Rh1 {[%emt 0:00:46]} Kb3 {[%emt 0:01:31]} 77. Rh3+ {[%emt 0:00:40]} Kb2 {[%emt 0:00:07]} 78. Rh2+ {[%emt 0:00:35]} Kb3 {[%emt 0:00:05]} 79. Rh3+ {[%emt 0:00:05]} Kb2 {[%emt 0:00:03]} 80. Rh2+ {[%emt 0:00:04]} Kb3 {[%emt 0:00:07]} 1/2-1/2

[Event "WSTCC-50 2024"]
[Site "Krakow"]
[Date "2024.07.03"]
[Round "2.5"]
[White "Csonkics, Tunde"]
[Black "Bouah, Lyndon"]
[Result "0-1"]
[ECO "E63"]
[WhiteElo "1995"]
[BlackElo "1996"]
[Annotator "NA RC"]
[PlyCount "110"]
[EventDate "2024.07.01"]
[EventType "team-tourn"]
[EventCountry "POL"]
[SourceTitle "playchess.com"]
[Source "ChessBase"]
[SourceQuality "1"]
[TimeControl "40/5400+30:1800+30"]

1. Nf3 {[%emt 0:00:02]} Nf6 {[%emt 0:00:10]} 2. g3 {[%emt 0:00:12]} g6 {[%emt 0:00:13]} 3. Bg2 {[%emt 0:00:18]} Bg7 {[%emt 0:00:08]} 4. O-O {[%emt 0:00:28]} O-O {[%emt 0:00:04]} 5. d4 {[%emt 0:00:19]} d6 {[%emt 0:00:26]} 6. c4 {[%emt 0:00:13]} Nc6 {[%emt 0:01:15]} 7. Nc3 {[%emt 0:00:25]} a6 {[%emt 0:00:45]} 8. e3 {[%emt 0:03:00]} Rb8 {[%emt 0:03:25]} 9. Qe2 {[%emt 0:02:33]} b5 {[%emt 0:07:32]} 10. Nd2 {[%emt 0:11:10]} Qd7 {[%emt 0:03:04]} 11. b3 {[%emt 0:02:11]} Re8 {[%emt 0:02:31]} 12. Bb2 {[%emt 0:02:03]} e5 {[%emt 0:01:00]} 13. d5 {[%emt 0:01:48]} Ne7 {[%emt 0:05:02]} 14. Rfd1 {[%emt 0:14:05]} h6 {[%emt 0:02:50]} 15. cxb5 {[%emt 0:02:06]} axb5 {[%emt 0:00:10]} 16. b4 {[%emt 0:00:10]} Nh7 {[%emt 0:00:41]} 17. e4 {[%emt 0:07:29]} f5 {[%emt 0:02:24]} 18. exf5 {[%emt 0:02:23]} gxf5 {[%emt 0:00:17]} 19. Nf3 {[%emt 0:01:12]} Ng6 {[%emt 0:01:33]} 20. Rac1 {[%emt 0:08:51]} Nf6 {[%emt 0:03:28]} 21. Qc2 {[%emt 0:02:34]} Qf7 {[%emt 0:01:12]} 22. Ne2 {[%emt 0:10:28]} Re7 {[%emt 0:02:32]} 23. Nc3 {[%emt 0:04:28]} Bf8 {[%emt 0:04:47]} 24. Re1 {[%emt 0:02:11]} Bd7 {[%emt 0:07:32]} 25. Rcd1 {[%emt 0:02:29]} Ng4 {[%emt 0:06:31]} 26. h3 {[%emt 0:00:35]} Nf6 {[%emt 0:00:08]} 27. Kh2 {[%emt 0:00:30]} Qe8 {[%emt 0:00:58]} 28. Bc1 {[%emt 0:01:03]} Kh7 {[%emt 0:01:08]} 29. g4 {[%emt 0:03:04]} Rg7 {[%emt 0:03:57]} 30. g5 {[%emt 0:00:52]} Nh5 {[%emt 0:00:41]} 31. gxh6 {[%emt 0:00:20]} Rg8 {[%emt 0:00:08]} 32. Ng5+ {[%emt 0:01:00]} Kh8 {[%emt 0:00:25]} 33. Ne6 {[%emt 0:01:40]} Bxe6 {[%emt 0:01:31]} 34. dxe6 {[%emt 0:00:28]} Ngf4 {[%emt 0:01:04]} 35. Rg1 {[%emt 0:03:53]} Qxe6 {[%emt 0:01:43]} 36. Nd5 {[%emt 0:01:40]} Rxg2+ {[%emt 0:00:59]} 37. Rxg2 {[%emt 0:00:40]} Nxd5 {[%emt 0:00:12]} 38. Rdg1 {[%emt 0:03:10]} Be7 {[%emt 0:09:29]} 39. Rg6 {[%emt 0:02:11]} Qf7 {[%emt 0:00:42]} 40. Qd1 {[%emt 0:01:01]} Ndf6 {[%emt 0:06:27]} 41. Qf3 {[%emt 0:32:37]} f4 {[%emt 0:33:13]} 42. R1g5 {[%emt 0:00:00]} Bf8 {[%emt 0:00:00]} 43. Qg2 {[%emt 0:00:00]} Kh7 {[%emt 0:00:00]} 44. Qc6 {[%emt 0:00:00]} Bxh6 {[%emt 0:00:00]} 45. Qc2 {[%emt 0:00:00]} e4 {[%emt 0:00:00]} 46. Rg1 {[%emt 0:00:00]} Ra8 {[%emt 0:00:00]} 47. a3 {[%emt 0:00:00]} Qc4 {[%emt 0:00:00]} 48. Qb2 {[%emt 0:00:00]} Nd5 {[%emt 0:00:00]} 49. Re6 {[%emt 0:00:00]} Qd3 {[%emt 0:00:00]} 50. Qa2 {[%emt 0:00:00]} Ng7 {[%emt 0:00:00]} 51. Reg6 {[%emt 0:00:00]} Nf5 {[%emt 0:00:00]} 52. Qa1 {[%emt 0:00:02]} Nd4 {[%emt 0:01:36]} 53. Rxh6+ {[%emt 0:05:36]} Kxh6 {[%emt 0:00:10]} 54. Rd1 {[%emt 0:00:12]} Nf3+ {[%emt 0:00:23]} 55. Kg2 {[%emt 0:00:24]} Qxd1 {[%emt 0:00:41]} 0-1